fUST/lending_fUST_20250819
["ID","MTS","AMOUNT","RATE_DAILY","PERIOD"]
[380141263,1755571857185,-940.49,0.0002,2]
[380141264,1755571857195,-2244.38,0.0002,2]
[380141265,1755571857204,-466.47007139,0.0002,2]
[380141266,1755571857214,-480.0,0.0002,2]
[380141267,1755571857223,-480.0,0.0002,2]
[380141268,1755571857232,-480.0,0.0002,2]
[380141269,1755571857241,-480.0,0.0002,2]
[380141270,1755571857251,-480.0,0.0002,2]
[380141271,1755571857260,-579.74,0.0002,2]
[380141272,1755571857269,-689.29,0.0002,2]
[380141273,1755571857278,-480.0,0.0002,2]
[380141274,1755571857287,-480.0,0.0002,2]
[380141275,1755571857296,-403.305264,0.0002,2]
[380141276,1755571857306,-1793.73,0.0002,2]
[380141277,1755571857315,-403.305264,0.0002,2]
[380141278,1755571857324,-151.0,0.0002,2]
[380141279,1755571857333,-151.0,0.0002,2]
[380141280,1755571857342,-1036.413818,0.0002,2]
[380141281,1755571857351,-1084.95,0.0002,2]
[380141282,1755571857360,-1036.413818,0.0002,2]
[380141283,1755571857370,-403.305264,0.0002,2]
[380141284,1755571857379,-403.305264,0.0002,2]
[380141285,1755571857388,-1036.413818,0.0002,2]
[380141286,1755571857397,-418.589448,0.0002,2]
[380141287,1755571857407,-1036.413818,0.0002,2]
[380141288,1755571857416,-418.589448,0.0002,2]
[380141289,1755571857425,-480.0,0.0002,2]
[380141290,1755571857434,-418.589448,0.0002,2]
[380141291,1755571857444,-418.589448,0.0002,2]
[380141292,1755571857453,-167.012945,0.0002,2]
[380141293,1755571857462,-480.0,0.0002,2]
[380141294,1755571857471,-824.97,0.0002,2]
[380141295,1755571857481,-2022.0,0.0002,2]
[380141296,1755571857491,-526.40821308,0.0002,2]
[380141297,1755571857500,-480.0,0.0002,2]
[380141298,1755571857509,-7332.65,0.0002,2]
[380141299,1755571857518,-480.0,0.0002,2]
[380141300,1755571857528,-480.0,0.0002,2]
[380141301,1755571857537,-500.0,0.0002,2]
[380141302,1755571857546,-480.0,0.0002,2]
[380141303,1755571857556,-480.0,0.0002,2]
[380141304,1755571857565,-587.69090009,0.0002,2]
[380141305,1755571857574,-161.530892,0.0002,2]
[380141306,1755571857583,-161.530892,0.0002,2]
[380141307,1755571857593,-725.84,0.0002,2]
[380141308,1755571857602,-480.0,0.0002,2]
[380141309,1755571857611,-480.0,0.0002,2]
[380141310,1755571857620,-2434.97,0.0002,2]
[380141311,1755571857629,-161.530892,0.0002,2]
[380141312,1755571857639,-161.530892,0.0002,2]
[380141313,1755571857648,-151.0,0.0002,2]
[380141314,1755571857657,-151.0,0.0002,2]
[380141315,1755571857669,-480.0,0.0002,2]
[380141316,1755571857678,-480.0,0.0002,2]
[380141317,1755571857687,-480.0,0.0002,2]
[380141318,1755571857697,-576.65,0.0002,2]
[380141319,1755571857706,-521.0,0.0002,2]
[380141320,1755571857715,-480.0,0.0002,2]
[380141321,1755571857725,-724.33,0.0002,2]
[380141322,1755571857734,-151.0,0.0002,2]
[380141323,1755571857743,-151.0,0.0002,2]
[380141324,1755571857752,-4000.0,0.0002,4]
[380141325,1755571857762,-485.52894441,0.0002,2]
[380141326,1755571857771,-1111.68,0.0002,2]
[380141327,1755571857780,-480.0,0.0002,2]
[380141328,1755571857789,-1153.12,0.0002,2]
[380141329,1755571857798,-480.0,0.0002,2]
[380141330,1755571857807,-506.4752791,0.00020021,2]
[380141331,1755571857816,-1015.24973545,0.00020021,2]
[380141332,1755571857826,-356.34548963,0.00020021,2]
[380141333,1755571857836,-1000.0,0.00020021,2]
[380141334,1755571857845,-1000.0,0.00020021,2]
[380141335,1755571857854,-585.69703793,0.00020021,2]
[380141336,1755571857862,-1000.0,0.00020021,2]
[380141337,1755571857872,-500.46847642,0.00020021,2]
[380141338,1755571857881,-1000.0,0.00020021,2]
[380141339,1755571857890,-501.66205949,0.00020021,2]
[380141340,1755571857899,-716.70851571,0.00020021,2]
[380141341,1755571857908,-1000.0,0.00020021,2]
[380141342,1755571857920,-504.34719205,0.00020021,2]
[380141343,1755571857929,-1001.06295074,0.00020021,2]
[380141344,1755571857940,-501.83130831,0.00020021,2]
[380141345,1755571857950,-1001.35727743,0.00020021,2]
[380141346,1755571857959,-501.39022557,0.00020021,2]
[380141347,1755571857968,-1000.0,0.00020021,2]
[380141348,1755571857977,-500.92870441,0.00020021,2]
[380141349,1755571857986,-1000.0,0.00020021,2]
[380141350,1755571857995,-908.60153196,0.00020021,2]
[380141351,1755571858005,-151.51570773,0.00020021,2]
[380141352,1755571858018,-1001.08190959,0.00020021,2]
[380141353,1755571858027,-207.12624511,0.00020021,2]
[380141354,1755571858036,-1001.35423179,0.00020021,2]
[380141355,1755571858046,-279.98607982,0.00020021,2]
[380141356,1755571858055,-1000.0,0.00020021,2]
[380141357,1755571858065,-1000.0,0.00020021,2]
[380141358,1755571858074,-151.0,0.00020021,2]
[380141359,1755571858083,-151.0,0.00020021,2]
[380141360,1755571858094,-151.0,0.00020021,2]
[380141361,1755571858104,-151.0,0.00020021,2]
[380141362,1755571858113,-152.81135,0.00020021,2]
[380141363,1755571858123,-151.0,0.00020021,2]
[380141364,1755571858132,-151.0,0.00020021,2]
[380141365,1755571858142,-151.0,0.00020021,2]
[380141366,1755571858151,-183.256411,0.00020021,2]
[380141367,1755571858160,-183.256411,0.00020021,2]
[380141368,1755571858169,-151.0,0.00020021,2]
[380141369,1755571858178,-151.0,0.00020021,2]
[380141370,1755571858187,-151.0,0.00020021,2]
[380141371,1755571858197,-151.0,0.00020021,2]
[380141372,1755571858206,-151.0,0.00020021,2]
[380141373,1755571858216,-152.269523,0.00020021,2]
[380141374,1755571858225,-151.0,0.00020021,2]
[380141375,1755571858234,-151.0,0.00020021,2]
[380141376,1755571858244,-278.039198,0.00020021,2]
[380141377,1755571858253,-278.039198,0.00020021,2]
[380141378,1755571858263,-278.039198,0.00020021,2]
[380141379,1755571858272,-278.039198,0.00020021,2]
[380141380,1755571858281,-835.462793,0.00020021,2]
[380141381,1755571858291,-835.462793,0.00020021,2]
[380141382,1755571858300,-151.0,0.00020021,2]
[380141383,1755571858309,-152.246591,0.00020021,2]
[380141384,1755571858320,-835.462793,0.00020021,2]
[380141385,1755571858330,-835.462793,0.00020021,2]
[380141386,1755571858340,-155.770809,0.00020021,2]
[380141387,1755571858349,-155.770809,0.00020021,2]
[380141388,1755571858359,-155.770809,0.00020021,2]
[380141389,1755571858368,-155.770809,0.00020021,2]
[380141390,1755571858377,-597.184088,0.00020021,2]
[380141391,1755571858387,-597.184088,0.00020021,2]
[380141392,1755571858396,-597.184088,0.00020021,2]
[380141393,1755571858406,-597.184088,0.00020021,2]
[380141394,1755571858415,-151.0,0.00020021,2]
[380141395,1755571858425,-151.0,0.00020021,2]
[380141396,1755571858434,-151.0,0.00020021,2]
[380141397,1755571858444,-151.0,0.00020021,2]
[380141398,1755571858453,-348.507292,0.00020021,2]
[380141399,1755571858462,-348.507292,0.00020021,2]
[380141400,1755571858472,-348.507292,0.00020021,2]
[380141401,1755571858481,-348.507292,0.00020021,2]
[380141402,1755571858490,-183.082645,0.00020021,2]
[380141403,1755571858500,-183.082645,0.00020021,2]
[380141404,1755571858509,-183.082645,0.00020021,2]
[380141405,1755571858518,-183.082645,0.00020021,2]
[380141406,1755571858528,-151.0,0.00020021,2]
[380141407,1755571858537,-151.0,0.00020021,2]
[380141408,1755571858547,-151.0,0.00020021,2]
[380141409,1755571858556,-151.0,0.00020021,2]
[380141410,1755571858565,-1551.782846,0.00020021,2]
[380141411,1755571858574,-1551.782846,0.00020021,2]
[380141412,1755571858583,-1551.782846,0.00020021,2]
[380141413,1755571858593,-1551.782846,0.00020021,2]
[380141414,1755571858603,-151.0,0.00020021,2]
[380141415,1755571858613,-151.0,0.00020021,2]
[380141416,1755571858623,-165.814009,0.00020021,2]
[380141417,1755571858633,-165.814009,0.00020021,2]
[380141418,1755571858643,-165.814009,0.00020021,2]
[380141419,1755571858654,-165.814009,0.00020021,2]
[380141420,1755571858664,-151.0,0.00020021,2]
[380141421,1755571858675,-151.0,0.00020021,2]
[380141422,1755571858684,-233.851648,0.00020021,2]
[380141423,1755571858694,-233.851648,0.00020021,2]
[380141424,1755571858705,-233.851648,0.00020021,2]
[380141425,1755571858714,-233.851648,0.00020021,2]
[380141426,1755571858723,-151.0,0.00020021,2]
[380141427,1755571858734,-189.33149,0.00020021,2]
[380141428,1755571858744,-196.61496,0.00020021,2]
[380141429,1755571858754,-196.61496,0.00020021,2]
[380141430,1755571858764,-196.61496,0.00020021,2]
[380141431,1755571858774,-196.61496,0.00020021,2]
[380141432,1755571858784,-427.753188,0.00020021,2]
[380141433,1755571858794,-427.753188,0.00020021,2]
[380141434,1755571858804,-427.753188,0.00020021,2]
[380141435,1755571858814,-427.753188,0.00020021,2]
[380141436,1755571858824,-572.45526,0.00020021,2]
[380141437,1755571858834,-572.45526,0.00020021,2]
[380141438,1755571858844,-151.0,0.00020021,2]
[380141439,1755571858854,-151.0,0.00020021,2]
[380141440,1755571858863,-572.45526,0.00020021,2]
[380141441,1755571858872,-572.45526,0.00020021,2]
[380141442,1755571858880,-151.0,0.00020021,2]
[380141443,1755571858889,-151.0,0.00020021,2]
[380141444,1755571858898,-191.779854,0.00020021,2]
[380141445,1755571858910,-151.0,0.00020021,2]
[380141446,1755571858921,-151.0,0.00020021,2]
[380141447,1755571858931,-151.0,0.00020021,2]
[380141448,1755571858942,-151.0,0.00020021,2]
[380141449,1755571858951,-151.0,0.00020021,2]
[380141450,1755571858960,-403.305264,0.00020021,2]
[380141451,1755571858969,-403.305264,0.00020021,2]
[380141452,1755571858980,-403.305264,0.00020021,2]
[380141453,1755571858989,-403.305268,0.00020021,2]
[380141454,1755571858999,-418.589448,0.00020021,2]
[380141455,1755571859010,-418.589448,0.00020021,2]
[380141456,1755571859021,-418.589448,0.00020021,2]
[380141457,1755571859030,-418.589441,0.00020021,2]
[380141458,1755571859039,-151.0,0.00020021,2]
[380141459,1755571859048,-151.0,0.00020021,2]
[380141460,1755571859059,-218.0,0.0002005,2]
[380141461,1755571859068,-569.77619581,0.00020073,2]
[380141462,1755571859077,-553.21200131,0.00020073,2]
[380141463,1755571859088,-221.7309803,0.00020073,2]
[380141464,1755571859097,-500.0,0.00020073,2]
[380141465,1755571859106,-501.26520079,0.00020073,2]
[380141466,1755571859116,-501.71740624,0.00020073,2]
[380141467,1755571859125,-158.6785085,0.00020073,2]
[380141468,1755571859134,-501.99223192,0.00020073,2]
[380141469,1755571859143,-500.0,0.00020073,2]
[380141470,1755571859151,-500.25206989,0.00020073,2]
[380141471,1755571859160,-258.80967205,0.00020073,2]
[380141472,1755571859170,-500.0,0.00020073,2]
[380141473,1755571859179,-158.68137963,0.00020073,2]
[380141474,1755571859188,-506.75523087,0.00020073,2]
[380141475,1755571859198,-185.50628992,0.00020073,2]
[380141476,1755571859207,-500.0,0.00020073,2]
[380141477,1755571859216,-501.0378727,0.00020073,2]
[380141478,1755571859226,-500.37432802,0.00020073,2]
[380141479,1755571859235,-500.0,0.00020073,2]
[380141480,1755571859338,-501.16140526,0.00020073,2]
[380141481,1755571859348,-500.0,0.00020073,2]
[380141482,1755571859358,-500.0,0.00020073,2]
[380141483,1755571859367,-160.26794997,0.00020073,2]
[380141484,1755571859376,-258.6809446,0.00020073,2]
[380141485,1755571859386,-501.33458769,0.00020073,2]
[380141486,1755571859395,-501.21209222,0.00020073,2]
[380141487,1755571859404,-500.31284062,0.00020073,2]
[380141488,1755571859413,-500.62627779,0.00020073,2]
[380141489,1755571859424,-500.0,0.00020073,2]
[380141490,1755571859433,-154.62673955,0.00020073,2]
[380141491,1755571859443,-525.8493875,0.00020073,2]
[380141492,1755571859452,-151.0,0.00020073,2]
[380141493,1755571859461,-151.0,0.00020073,2]
[380141494,1755571859470,-151.0,0.00020073,2]
[380141495,1755571859479,-1036.413818,0.00020073,2]
[380141496,1755571859488,-1036.41381249,0.00020073,2]
[380141497,1755571859497,-161.530892,0.00020073,2]
[380141498,1755571859507,-161.530882,0.00020073,2]
[380141499,1755571859516,-151.0,0.00020073,2]
[380141500,1755571859527,-11443.27688377,0.00020089,2]
[380141501,1755571859537,-501.44878262,0.00020098,2]
[380141502,1755571859545,-278.49311682,0.00020173,2]
[380141503,1755571859555,-158.910957,0.00020187,2]
[380141504,1755571859564,-3971.11834129,0.00020211,2]
[380141505,1755571859573,-218.0,0.00020233,2]
[380141506,1755571859583,-170.0,0.0002026,2]
[380141507,1755571859592,-480.0,0.00020273,2]
[380141508,1755571859601,-480.0,0.00020273,2]
[380141509,1755571859611,-151.0,0.00020273,2]
[380141510,1755571859620,-151.0,0.00020273,2]
[380141511,1755571859631,-480.0,0.00020273,2]
[380141512,1755571859641,-151.0,0.00020273,2]
[380141513,1755571859652,-152.010756,0.00020273,2]
[380141514,1755571859663,-503.94,0.00020273,2]
[380141515,1755571859674,-480.0,0.00020273,2]
[380141516,1755571859683,-480.0,0.00020273,2]
[380141517,1755571859693,-480.0,0.00020273,2]
[380141518,1755571859706,-151.0,0.00020273,2]
[380141519,1755571859717,-151.0,0.00020273,2]
[380141520,1755571859727,-3975.87,0.00020273,2]
[380141521,1755571859737,-658.64,0.00020273,2]
[380141522,1755571859746,-480.0,0.00020273,2]
[380141523,1755571859755,-598.85208551,0.00020273,2]
[380141524,1755571859765,-151.0,0.00020273,2]
[380141525,1755571859774,-151.0,0.00020273,2]
[380141526,1755571859783,-728.69,0.00020273,2]
[380141527,1755571859792,-480.0,0.00020273,2]
[380141528,1755571859802,-480.0,0.00020273,2]
[380141529,1755571859812,-480.0,0.00020273,2]
[380141530,1755571859821,-780.52,0.00020273,2]
[380141531,1755571859831,-183.256411,0.00020273,2]
[380141532,1755571859841,-183.256402,0.00020273,2]
[380141533,1755571859850,-480.0,0.00020273,2]
[380141534,1755571859860,-269.622662,0.00020273,2]
[380141535,1755571859869,-485.70651694,0.00020273,2]
[380141536,1755571859879,-480.0,0.00020273,2]
[380141537,1755571859890,-151.0,0.00020273,2]
[380141538,1755571859900,-151.0,0.00020273,2]
[380141539,1755571859909,-480.0,0.00020273,2]
[380141540,1755571859919,-2567.44,0.00020273,2]
[380141541,1755571859928,-151.0,0.00020273,2]
[380141542,1755571859938,-151.0,0.00020273,2]
[380141543,1755571859947,-594.45534281,0.00020273,2]
[380141544,1755571859957,-474.61496661,0.00020273,2]
[380141545,1755571859966,-220.64926453,0.00020273,2]
[380141546,1755571859976,-480.0,0.00020273,2]
[380141547,1755571859985,-480.0,0.00020273,2]
[380141548,1755571859995,-738.51,0.00020273,2]
[380141549,1755571860005,-480.0,0.00020273,2]
[380141550,1755571860018,-480.0,0.00020273,2]
[380141551,1755571860029,-480.0,0.00020273,2]
[380141552,1755571860039,-480.0,0.00020273,2]
[380141553,1755571860051,-480.0,0.00020273,2]
[380141554,1755571860061,-480.0,0.00020273,2]
[380141555,1755571860071,-278.039198,0.00020273,2]
[380141556,1755571860081,-278.039198,0.00020273,2]
[380141557,1755571860094,-278.039198,0.00020273,2]
[380141558,1755571860104,-278.039203,0.00020273,2]
[380141559,1755571860114,-480.0,0.00020273,2]
[380141560,1755571860123,-824.41,0.00020273,2]
[380141561,1755571860134,-480.0,0.00020273,2]
[380141562,1755571860144,-480.0,0.00020273,2]
[380141563,1755571860153,-480.0,0.00020273,2]
[380141564,1755571860162,-835.462793,0.00020273,2]
[380141565,1755571860173,-835.462797,0.00020273,2]
[380141566,1755571860183,-480.0,0.00020273,2]
[380141567,1755571860192,-3849.98,0.00020273,2]
[380141568,1755571860202,-3849.98,0.00020273,2]
[380141569,1755571860212,-822.38,0.00020273,2]
[380141570,1755571860222,-155.770809,0.00020273,2]
[380141571,1755571860232,-155.770812,0.00020273,2]
[380141572,1755571860242,-480.0,0.00020273,2]
[380141573,1755571860251,-480.0,0.00020273,2]
[380141574,1755571860260,-674.92,0.00020273,2]
[380141575,1755571860269,-350.51477965,0.00020273,2]
[380141576,1755571860279,-597.184088,0.00020273,2]
[380141577,1755571860288,-480.0,0.00020273,2]
[380141578,1755571860298,-480.0,0.00020273,2]
[380141579,1755571860307,-480.0,0.00020273,2]
[380141580,1755571860317,-597.184096,0.00020273,2]
[380141581,1755571860326,-480.0,0.00020273,2]
[380141582,1755571860335,-1308.25,0.00020273,2]
[380141583,1755571860344,-361.87652166,0.00020273,2]
[380141584,1755571860353,-480.0,0.00020273,2]
[380141585,1755571860363,-151.0,0.00020273,2]
[380141586,1755571860373,-480.0,0.00020273,2]
[380141587,1755571860382,-232.921973,0.00020273,2]
[380141588,1755571860394,-348.507292,0.00020273,2]
[380141589,1755571860403,-348.507298,0.00020273,2]
[380141590,1755571860412,-480.0,0.00020273,2]
[380141591,1755571860421,-183.082645,0.00020273,2]
[380141592,1755571860431,-183.082647,0.00020273,2]
[380141593,1755571860440,-436.79639534,0.00020273,2]
[380141594,1755571860450,-480.0,0.00020273,2]
[380141595,1755571860459,-480.0,0.00020273,2]
[380141596,1755571860468,-480.0,0.00020273,2]
[380141597,1755571860477,-224.907401,0.00020273,2]
[380141598,1755571860486,-951.37,0.00020273,2]
[380141599,1755571860495,-621.27,0.00020273,2]
[380141600,1755571860504,-887.26,0.00020273,2]
[380141601,1755571860514,-480.0,0.00020273,2]
[380141602,1755571860524,-151.0,0.00020273,2]
[380141603,1755571860533,-480.0,0.00020273,2]
[380141604,1755571860542,-480.0,0.00020273,2]
[380141605,1755571860551,-480.0,0.00020273,2]
[380141606,1755571860560,-582.64,0.00020273,2]
[380141607,1755571860570,-480.0,0.00020273,2]
[380141608,1755571860579,-641.38,0.00020273,2]
[380141609,1755571860590,-1058.1,0.00020273,2]
[380141610,1755571860600,-1551.782846,0.00020273,2]
[380141611,1755571860610,-1551.782853,0.00020273,2]
[380141612,1755571860620,-480.0,0.00020273,2]
[380141613,1755571860630,-513.86,0.00020273,2]
[380141614,1755571860640,-151.0,0.00020273,2]
[380141615,1755571860650,-480.0,0.00020273,2]
[380141616,1755571860659,-2226.18,0.00020273,2]
[380141617,1755571860669,-480.0,0.00020273,2]
[380141618,1755571860678,-165.814009,0.00020273,2]
[380141619,1755571860687,-165.81401,0.00020273,2]
[380141620,1755571860697,-1389.47,0.00020273,2]
[380141621,1755571860707,-480.0,0.00020273,2]
[380141622,1755571860716,-480.0,0.00020273,2]
[380141623,1755571860725,-151.0,0.00020273,2]
[380141624,1755571860735,-233.851648,0.00020273,2]
[380141625,1755571860744,-480.0,0.00020273,2]
[380141626,1755571860754,-233.851652,0.00020273,2]
[380141627,1755571860766,-480.0,0.00020273,2]
[380141628,1755571860776,-485.57985944,0.00020273,2]
[380141629,1755571860786,-480.0,0.00020273,2]
[380141630,1755571860797,-480.0,0.00020273,2]
[380141631,1755571860807,-442.81262063,0.00020273,2]
[380141632,1755571860816,-480.0,0.00020273,2]
[380141633,1755571860826,-1060.68,0.00020273,2]
[380141634,1755571860836,-1515.48,0.00020273,2]
[380141635,1755571860846,-196.61496,0.00020273,2]
[380141636,1755571860856,-2340.91,0.00020273,2]
[380141637,1755571860865,-196.614956,0.00020273,2]
[380141638,1755571860875,-427.753188,0.00020273,2]
[380141639,1755571860887,-1144.76,0.00020273,2]
[380141640,1755571860896,-427.753187,0.00020273,2]
[380141641,1755571860907,-480.0,0.00020273,2]
[380141642,1755571860917,-1844.46,0.00020273,2]
[380141643,1755571860926,-480.0,0.00020273,2]
[380141644,1755571860935,-480.0,0.00020273,2]
[380141645,1755571860945,-1686.71,0.00020273,2]
[380141646,1755571860954,-572.45526,0.00020273,2]
[380141647,1755571860963,-151.0,0.00020273,2]
[380141648,1755571860972,-2113.96,0.00020273,2]
[380141649,1755571860983,-572.455265,0.00020273,2]
[380141650,1755571860994,-699.31,0.00020273,2]
[380141651,1755571861005,-480.0,0.00020273,2]
[380141652,1755571861020,-480.0,0.00020273,2]
[380141653,1755571861030,-790.91,0.00020273,2]
[380141654,1755571861042,-480.0,0.00020273,2]
[380141655,1755571861053,-1144.75,0.00020273,2]
[380141656,1755571861062,-480.0,0.00020273,2]
[380141657,1755571861072,-1081.01,0.00020273,2]
[380141658,1755571861084,-480.0,0.00020273,2]
[380141659,1755571861094,-932.47,0.00020273,2]
[380141660,1755571861106,-480.0,0.00020273,2]
[380141661,1755571861116,-480.0,0.00020273,2]
[380141662,1755571861126,-480.0,0.00020273,2]
[380141663,1755571861135,-151.0,0.00020273,2]
[380141664,1755571861144,-480.0,0.00020273,2]
[380141665,1755571861154,-5557.56,0.00020273,2]
[380141666,1755571861163,-480.0,0.00020273,2]
[380141667,1755571861173,-3506.17,0.00020273,2]
[380141668,1755571861182,-480.0,0.00020273,2]
[380141669,1755571861192,-677.87,0.00020273,2]
[380141670,1755571861201,-486.69222606,0.00020273,2]
[380141671,1755571861210,-2630.2,0.00020273,2]
[380141672,1755571861219,-615.84,0.00020273,2]
[380141673,1755571861229,-1069.27,0.00020273,2]
[380141674,1755571861238,-480.0,0.00020273,2]
[380141675,1755571861247,-480.0,0.00020273,2]
[380141676,1755571861256,-480.0,0.00020273,2]
[380141677,1755571861265,-493.79179275,0.00020273,2]
[380141678,1755571861274,-935.17,0.00020273,2]
[380141679,1755571861284,-6302.88,0.00020273,2]
[380141680,1755571861295,-491.14911974,0.00020273,2]
[380141681,1755571861305,-191.37979236,0.00020273,2]
[380141682,1755571861314,-480.0,0.00020273,2]
[380141683,1755571861324,-480.0,0.00020273,2]
[380141684,1755571861334,-480.0,0.00020273,2]
[380141685,1755571861344,-487.63,0.00020273,2]
[380141686,1755571861353,-563.21,0.00020273,2]
[380141687,1755571861362,-480.0,0.00020273,2]
[380141688,1755571861372,-526.33,0.00020273,2]
[380141689,1755571861382,-743.48,0.00020273,2]
[380141690,1755571861391,-1905.62,0.00020273,2]
[380141691,1755571861400,-480.0,0.00020273,2]
[380141692,1755571861409,-480.0,0.00020273,2]
[380141693,1755571861419,-480.0,0.00020273,2]
[380141694,1755571861429,-480.0,0.00020273,2]
[380141695,1755571861438,-480.10791762,0.00020273,2]
[380141696,1755571861448,-480.0,0.00020273,2]
[380141697,1755571861458,-864.85,0.00020273,2]
[380141698,1755571861467,-940.49,0.00020273,2]
[380141699,1755571861476,-2244.38,0.00020273,2]
[380141700,1755571861485,-480.0,0.00020273,2]
[380141701,1755571861494,-480.0,0.00020273,2]
[380141702,1755571861504,-480.0,0.00020273,2]
[380141703,1755571861513,-480.0,0.00020273,2]
[380141704,1755571861522,-579.74,0.00020273,2]
[380141705,1755571861531,-689.29,0.00020273,2]
[380141706,1755571861540,-480.0,0.00020273,2]
[380141707,1755571861550,-480.0,0.00020273,2]
[380141708,1755571861559,-1793.73,0.00020273,2]
[380141709,1755571861568,-1084.95,0.00020273,2]
[380141710,1755571861577,-480.0,0.00020273,2]
[380141711,1755571861586,-486.99420107,0.00020273,2]
[380141712,1755571861596,-824.97,0.00020273,2]
[380141713,1755571861605,-2022.0,0.00020273,2]
[380141714,1755571861707,-480.0,0.00020273,2]
[380141715,1755571861717,-7332.65,0.00020273,2]
[380141716,1755571861726,-480.0,0.00020273,2]
[380141717,1755571861736,-395.42394743,0.00020273,2]
[380141718,1755571861745,-480.0,0.00020273,2]
[380141719,1755571861754,-480.0,0.00020273,2]
[380141720,1755571861763,-725.84,0.00020273,2]
[380141721,1755571861773,-480.0,0.00020273,2]
[380141722,1755571861782,-480.0,0.00020273,2]
[380141723,1755571861791,-2434.97,0.00020273,2]
[380141724,1755571861800,-480.0,0.00020273,2]
[380141725,1755571861810,-480.0,0.00020273,2]
[380141726,1755571861819,-480.0,0.00020273,2]
[380141727,1755571861828,-576.65,0.00020273,2]
[380141728,1755571861838,-521.0,0.00020273,2]
[380141729,1755571861847,-577.41867385,0.00020273,2]
[380141730,1755571861856,-724.33,0.00020273,2]
[380141731,1755571861865,-1111.68,0.00020273,2]
[380141732,1755571861875,-480.0,0.00020273,2]
[380141733,1755571861885,-1153.12,0.00020273,2]
[380141734,1755571861894,-480.0,0.00020273,2]
[380141735,1755571861903,-242.0,0.00020273,2]
[380141736,1755571861913,-442.0,0.00020274,2]
[380141737,1755571861923,-198.84867244,0.00020274,2]
[380141738,1755571861932,-329.75610988,0.00020274,2]
[380141739,1755571861942,-3330.71927711,0.00020313,2]
[380141740,1755571861951,-168.0,0.00020433,2]
[380141741,1755571861960,-3000.0,0.00020438,2]
[380141742,1755571861970,-85076.46201105,0.0002044,2]
[380141743,1755571861979,-500.0,0.0002044,2]
[380141744,1755571861987,-500.0,0.0002044,2]
[380141745,1755571861996,-500.0,0.0002044,2]
[380141746,1755571862005,-500.0,0.0002044,2]
[380141747,1755571862018,-215.63953318,0.0002044,2]
[380141748,1755571862027,-500.0,0.0002044,2]
[380141749,1755571862036,-500.0,0.0002044,2]
[380141750,1755571862045,-500.0,0.0002044,2]
[380141751,1755571862055,-500.0,0.0002044,2]
[380141752,1755571862069,-500.0,0.0002044,2]
[380141753,1755571862078,-500.0,0.0002044,2]
[380141754,1755571862090,-282.75038961,0.0002044,2]
[380141755,1755571862099,-316.0025745,0.00020493,2]
[380141756,1755571862109,-293.8392635,0.00020493,2]
[380141757,1755571862120,-336.1267003,0.00020493,2]
[380141758,1755571862140,-480.0,0.00020547,2]
[380141759,1755571862155,-480.0,0.00020547,2]
[380141760,1755571862164,-480.0,0.00020547,2]
[380141761,1755571862174,-503.94,0.00020547,2]
[380141762,1755571862183,-480.0,0.00020547,2]